bitfinex/quotes_SOLUSD_20220114
["timestamp","ask_amount","ask_price","bid_price","bid_amount"]
[1642143102168,27.11549772,149.23,149.21,0.33496868]
[1642143102573,104.16209772,149.23,149.21,0.33496868]
[1642143103972,37.17209772,149.23,149.21,0.33496868]
[1642143104571,27.11549772,149.23,149.21,0.33496868]
[1642143104771,2.37039772,149.23,149.21,0.33496868]
[1642143107075,2.12039772,149.23,149.21,0.33496868]
[1642143108578,2.37039772,149.23,149.21,0.33496868]
[1642143113110,2.12039772,149.23,149.21,0.33496868]
[1642143113808,23.5034,149.25,149.22,3.94390224]
[1642143114208,23.5034,149.25,149.21,0.33496868]
[1642143114609,23.7534,149.25,149.21,0.33496868]
[1642143116415,0.25,149.25,149.21,0.33496868]
[1642143116814,2.68,149.27,149.21,0.33496868]
[1642143116815,2.93,149.27,149.21,0.33496868]
[1642143117017,0.25,149.27,149.21,0.33496868]
[1642143117418,10.0538,149.27,149.21,0.33496868]
[1642143117816,10.3038,149.27,149.21,0.33496868]
[1642143118717,0.25,149.27,149.21,0.33496868]
[1642143119116,92.7711,149.28,149.21,0.33496868]
[1642143119819,25.7811,149.28,149.21,0.33496868]
[1642143121820,35.8343,149.28,149.21,0.33496868]
[1642143122023,9.57,149.27,149.21,0.33496868]
[1642143122425,9.82,149.27,149.21,0.33496868]
[1642143123119,19.874,149.27,149.21,0.33496868]
[1642143124921,9.82,149.27,149.21,0.33496868]
[1642143128122,9.32,149.27,149.21,0.33496868]
[1642143128824,2.68,149.26,149.21,0.33496868]
[1642143129022,0.25,149.26,149.21,0.33496868]
[1642143130123,0.25,149.27,149.21,0.33496868]
[1642143130524,25.7811,149.28,149.21,0.33496868]
[1642143130824,2.93,149.28,149.21,0.33496868]
[1642143131025,12.983,149.28,149.21,0.33496868]
[1642143131625,36.3719,149.28,149.21,0.33496868]
[1642143139332,26.0689,149.28,149.22,27.27247898]
[1642143139529,23.3889,149.28,149.22,27.27247898]
[1642143139929,9.57,149.31,149.22,27.27247898]
[1642143140231,2.68,149.32,149.22,27.27247898]
[1642143140730,23.3751,149.31,149.22,27.27247898]
[1642143140931,2.678,149.3,149.22,27.27247898]
[1642143141332,2.928,149.3,149.22,27.27247898]
[1642143141731,2.678,149.3,149.22,27.27247898]
[1642143142035,22.2982,149.33,149.23,2.678]
[1642143142234,12.248,149.33,149.24,23.9907]
[1642143142433,2.678,149.34,149.24,23.9907]
[1642143142631,24.8644,149.33,149.25,2.678]
[1642143142832,2.678,149.34,149.25,2.678]
[1642143143236,2.928,149.34,149.26,23.4161]
[1642143143434,0.25,149.34,149.26,23.4161]
[1642143143933,26.0634,149.35,149.26,23.4161]
[1642143146263,50.4302,149.35,149.26,23.4161]
[1642143147563,60.4788,149.35,149.26,23.4161]
[1642143150167,37.3434,149.35,149.26,23.4161]
[1642143150368,27.2948,149.35,149.26,23.4161]
[1642143151167,27.2948,149.35,149.26,33.463]
[1642143151368,27.0448,149.35,149.26,33.463]
[1642143151572,27.0448,149.35,149.27,2.678]
[1642143151573,24.3668,149.35,149.27,2.678]
[1642143151769,24.3668,149.35,149.28,30.74906203]
[1642143152572,24.3668,149.35,149.27,2.678]
[1642143152770,24.6168,149.35,149.27,2.678]
[1642143154673,34.6651,149.35,149.27,2.678]
[1642143154875,37.3431,149.35,149.26,23.4161]
[1642143156178,27.2948,149.35,149.26,23.4161]
[1642143157481,24.6168,149.35,149.26,23.4161]
[1642143161985,24.6168,149.35,149.25,15.1656]
[1642143162186,34.1868,149.35,149.25,15.1656]
[1642143162386,44.2351,149.35,149.25,5.118]
[1642143162787,2.678,149.34,149.25,2.44]
[1642143162987,2.928,149.34,149.25,2.44]
[1642143163386,24.6321,149.33,149.25,2.44]
[1642143163612,2.678,149.32,149.25,2.44]
[1642143163810,11.094,149.32,149.25,2.44]
[1642143164010,11.344,149.32,149.25,2.44]
[1642143164812,21.3947,149.32,149.25,2.44]
[1642143165013,2.928,149.32,149.25,2.44]
[1642143165715,0.25,149.32,149.26,2.678]
[1642143166114,24.6321,149.33,149.26,2.678]
[1642143167315,24.6321,149.33,149.25,2.44]
[1642143167316,2.678,149.32,149.25,2.44]
[1642143167515,2.928,149.32,149.25,2.44]
[1642143168715,0.25,149.32,149.25,25.57777246]
[1642143169217,24.8821,149.33,149.25,25.57777246]
[1642143171221,24.8821,149.33,149.25,2.44]
[1642143173022,34.9317,149.33,149.25,2.44]
[1642143173224,36.84288716,149.33,149.25,2.44]
[1642143176527,26.79328716,149.33,149.25,2.44]
[1642143176825,1.91118716,149.33,149.25,2.44]
[1642143177024,1.91118716,149.33,149.25,2.7]
[1642143177226,1.91118716,149.33,149.26,2.678]
[1642143177424,2.678,149.34,149.29,10.0438]
[1642143177628,2.678,149.34,149.31,28.18325084]
[1642143177826,2.678,149.34,149.32,3.94390224]
[1642143178427,2.928,149.34,149.32,3.94390224]
[1642143179028,2.928,149.34,149.32,13.98680224]
[1642143180031,2.928,149.34,149.32,3.94390224]
[1642143182835,2.678,149.34,149.32,3.94390224]
[1642143183035,1.91118716,149.39,149.33,2.678]
[1642143183441,1.91118716,149.39,149.33,2.938]
[1642143184135,1.91118716,149.39,149.34,10.0412]
[1642143184538,1.91118716,149.41,149.34,10.3012]
[1642143184738,0.25,149.39,149.34,10.0412]
[1642143184937,2.16118716,149.41,149.34,10.0412]
[1642143185138,1.91118716,149.41,149.34,10.0412]
[1642143186439,0.25,149.41,149.34,10.0412]
[1642143186640,0.25,149.41,149.34,33.008]
[1642143186842,2.16118716,149.42,149.34,33.008]
[1642143187940,2.16118716,149.42,149.34,33.268]
[1642143189543,2.16118716,149.42,149.34,100.258]
[1642143189844,2.16118716,149.42,149.34,33.268]
[1642143190844,0.25,149.42,149.34,33.268]
[1642143191049,1.91118716,149.43,149.34,42.838]
[1642143191050,2.16118716,149.43,149.34,42.838]
[1642143191246,2.16118716,149.43,149.35,2.677]
[1642143191447,2.16118716,149.43,149.39,10.0378]
[1642143191648,2.16118716,149.43,149.39,16.0388]
[1642143192948,2.16118716,149.43,149.39,10.0378]
[1642143197982,1.91118716,149.43,149.39,10.0378]
[1642143198181,2.677,149.46,149.4,2.677]
[1642143198382,3.79821522,149.47,149.43,10.034]
[1642143198581,3.79821522,149.47,149.44,25.20412717]
[1642143198981,3.79821522,149.47,149.43,75.809]
[1642143198982,1.522e-05,149.47,149.45,3.94390224]
[1642143199382,1.522e-05,149.47,149.45,4.20390224]
[1642143200185,1.522e-05,149.47,149.45,14.23690224]
[1642143200385,5.69732283,149.5,149.45,14.23690224]
[1642143200585,5.69732283,149.5,149.45,23.80690224]
[1642143200885,27.3563,149.56,149.45,23.80690224]
[1642143201087,27.3563,149.56,149.45,47.76830224]
[1642143201486,27.6063,149.56,149.45,47.50830224]
[1642143202088,3.83847833,149.55,149.45,47.50830224]
[1642143202287,2.674,149.54,149.45,47.50830224]
[1642143202487,2.924,149.54,149.45,47.50830224]
[1642143203488,2.924,149.54,149.45,37.47530224]
[1642143203689,12.959,149.54,149.45,37.47530224]
[1642143204089,2.924,149.54,149.45,13.51390224]
[1642143204689,2.924,149.54,149.45,23.54810224]
[1642143206094,2.924,149.54,149.45,13.51390224]
[1642143207195,3.83894446,149.53,149.45,13.51390224]
[1642143207395,2.674,149.52,149.45,13.51390224]
[1642143207597,2.924,149.52,149.45,13.51390224]
[1642143209699,2.924,149.52,149.45,3.94390224]
[1642143211704,12.9602,149.52,149.45,3.94390224]
[1642143211902,10.2862,149.52,149.45,3.94390224]
[1642143212503,2.674,149.53,149.46,30.34267597]
[1642143212705,24.5499,149.54,149.47,10.0328]
[1642143213906,2.674,149.56,149.47,10.0328]
[1642143214107,26.9242,149.57,149.47,33.342]
[1642143214309,24.2502,149.57,149.47,33.342]
[1642143215408,22.9021,149.56,149.47,33.342]
[1642143215807,23.1521,149.56,149.47,33.342]
[1642143216432,22.9021,149.56,149.47,33.342]
[1642143216636,22.9021,149.56,149.48,2.674]
[1642143216836,22.9021,149.56,149.49,10.031]
[1642143217036,22.9021,149.56,149.5,2.674]
[1642143217439,22.9021,149.56,149.48,4.2971622]
[1642143218237,23.1521,149.56,149.48,4.2971622]
[1642143218938,23.1521,149.56,149.48,2.674]
[1642143219137,23.1521,149.56,149.51,10.0303]
[1642143219339,0.25,149.56,149.51,10.0303]
[1642143219537,24.5002,149.57,149.51,10.0303]
[1642143219938,24.5002,149.57,149.48,2.674]
[1642143221139,24.5002,149.57,149.49,10.0311]
[1642143224849,0.25,149.57,149.49,10.0311]
[1642143225148,26.18,149.59,149.49,10.0311]
[1642143225149,26.43,149.59,149.49,10.0311]
[1642143225349,26.43,149.59,149.52,10.0295]
[1642143225552,2.674,149.59,149.52,10.0295]
[1642143225760,8.37132283,149.62,149.53,32.44319622]
[1642143225951,5.69732283,149.62,149.53,32.70319622]
[1642143226449,5.69732283,149.62,149.53,99.69319622]
[1642143226648,5.69732283,149.62,149.56,10.0265]
[1642143226849,23.8126,149.63,149.56,10.0265]
[1642143227052,26.4856,149.63,149.56,10.0265]
[1642143227351,26.7356,149.63,149.56,10.0265]
[1642143228254,26.4856,149.63,149.56,10.0265]
[1642143228452,23.8126,149.63,149.56,10.0265]
[1642143228652,23.8126,149.63,149.57,2.673]
[1642143228852,2.673,149.66,149.58,10.025]
[1642143230455,3.83604102,149.65,149.58,10.025]
[1642143230856,4.08604102,149.65,149.58,10.025]
[1642143231963,3.83604102,149.65,149.58,10.025]
[1642143232166,3.83604102,149.65,149.59,26.52502935]
[1642143232363,3.83604102,149.65,149.61,10.0231]
[1642143232563,3.83604102,149.64,149.62,2.673]
[1642143232762,3.83604102,149.64,149.6,2.673]
[1642143232963,3.83604102,149.64,149.6,2.933]
[1642143233366,3.83604102,149.64,149.63,10.0222]
[1642143233665,3.83604102,149.7,149.63,13.96610224]
[1642143234064,3.83604102,149.7,149.64,2.672]
[1642143234264,3.83604102,149.7,149.66,10.0199]
[1642143234889,25.9899,149.75,149.66,10.0199]
[1642143235888,3.83382167,149.74,149.66,10.0199]
[1642143236087,2.672,149.73,149.66,10.0199]
[1642143237090,3.83382167,149.74,149.66,12.6919]
[1642143237490,3.83382167,149.74,149.66,22.2619]
[1642143237690,23.3179,149.75,149.66,22.2619]
[1642143239896,0.25,149.75,149.66,22.2619]
[1642143240095,10.2692,149.76,149.66,22.2619]
[1642143242108,3.83316497,149.75,149.66,22.2619]
[1642143242502,3.83316497,149.75,149.71,0.30951259]
[1642143242700,5.69732283,149.79,149.75,10.0132]
[1642143242900,5.69732283,149.79,149.76,2.67]
[1642143242901,2.283e-05,149.79,149.76,2.67]
[1642143243200,12.16553805,149.85,149.76,2.67]
[1642143243201,9.49553805,149.85,149.77,3.94390224]
[1642143243400,9.49553805,149.85,149.78,12.24]
[1642143243800,9.49553805,149.85,149.78,12.5]
[1642143244001,2.669,149.9,149.78,39.7167057]
[1642143244200,66.99,149.95,149.81,10.0095]
[1642143244201,2.669,149.93,149.81,10.0095]
[1642143244402,2.668,149.94,149.81,19.5795]
[1642143245210,10.0087,149.93,149.81,19.5795]
[1642143246706,10.0105,149.91,149.82,2.668]
[1642143246906,2.669,149.9,149.81,19.5795]
[1642143247408,2.919,149.9,149.81,19.5795]
[1642143247608,2.919,149.9,149.81,9.57]
[1642143247806,10.2609,149.9,149.81,9.57]
[1642143248008,2.669,149.89,149.81,9.57]
[1642143248410,2.919,149.89,149.81,9.57]
[1642143248807,0.25,149.89,149.81,9.57]
[1642143249009,2.669,149.88,149.81,9.57]
[1642143249510,2.919,149.88,149.81,9.57]
[1642143250111,12.9314,149.88,149.77,9.57]
[1642143250310,2.919,149.88,149.77,9.57]
[1642143251210,10.0148,149.85,149.77,9.57]
[1642143251608,0.25,149.85,149.77,9.57]
[1642143252210,0.25,149.85,149.77,19.5828]
[1642143252409,0.25,149.85,149.77,21.19368842]
[1642143252615,2.919,149.88,149.79,26.66275232]
[1642143253210,12.9312,149.88,149.79,26.66275232]
[1642143253810,10.2622,149.88,149.8,2.669]
[1642143259113,2.669,149.87,149.79,26.66275232]
[1642143259314,12.6818,149.87,149.79,26.66275232]
[1642143259514,12.9318,149.87,149.79,26.66275232]
[1642143259813,10.2628,149.87,149.79,26.66275232]
[1642143260616,10.2628,149.87,149.77,10.07]
[1642143261044,10.2628,149.87,149.77,20.0828]
[1642143261417,10.2628,149.87,149.77,10.07]
[1642143262718,10.0128,149.87,149.82,0.32311209]
[1642143262920,2.669,149.88,149.83,2.669]
[1642143263419,2.669,149.88,149.82,4.27988842]
[1642143263618,2.669,149.88,149.82,13.84988842]
[1642143263819,2.669,149.95,149.82,13.84988842]
[1642143264018,26.2876,149.95,149.82,13.84988842]
[1642143264222,10.0088,149.94,149.82,13.84988842]
[1642143264419,2.668,149.93,149.82,12.239]
[1642143264620,4.3412434,149.93,149.82,2.669]
[1642143264819,66.99,149.92,149.82,2.669]
[1642143265020,2.668,149.91,149.82,2.669]
[1642143265320,10.012,149.9,149.82,2.669]
[1642143265522,2.669,149.89,149.77,10.07]
[1642143265723,26.7402,149.89,149.77,10.07]
[1642143266021,26.9902,149.89,149.77,10.07]
[1642143266420,66.99,149.88,149.77,10.07]
[1642143266624,66.99,149.88,149.78,2.669]
[1642143266821,12.6826,149.87,149.78,2.669]
[1642143267021,12.9326,149.87,149.78,2.669]
[1642143267421,10.2636,149.87,149.78,2.669]
[1642143268546,2.669,149.88,149.78,12.239]
[1642143268747,10.54215513,150.01,149.78,12.239]
[1642143268748,84.0236,150.0,149.83,0.30667086]
[1642143268947,36.189,150.0,149.84,12.238]
[1642143269147,60.0758,150.02,149.84,12.238]
[1642143269447,66.99,150.01,149.84,13.84888842]
[1642143269648,66.99,149.99,149.84,13.84888842]
[1642143269851,2.668,149.98,149.84,13.84888842]
[1642143270249,2.918,149.98,149.84,13.84888842]
[1642143270449,22.8065,149.97,149.84,12.238]
[1642143270653,2.668,149.96,149.84,12.238]
[1642143270848,69.658,149.96,149.84,12.238]
[1642143271050,2.918,149.96,149.84,12.238]
[1642143271351,2.918,149.96,149.84,23.85698842]
[1642143271549,23.5896,149.95,149.84,48.85508842]
[1642143271950,0.25,149.95,149.84,49.11508842]
[1642143272950,26.6214,150.01,149.84,49.11508842]
[1642143275154,26.6214,150.01,149.84,48.85508842]
[1642143277155,9.57,150.0,149.84,48.85508842]
[1642143277357,2.668,149.99,149.84,47.2442]
[1642143277560,34.1995,149.98,149.84,47.2442]
[1642143277756,69.658,149.97,149.84,34.5681]
[1642143277957,22.6165,149.96,149.84,9.57]
[1642143278258,2.668,149.95,149.82,2.668]
[1642143278556,4.5912434,149.95,149.81,9.57]
[1642143278756,1.6732434,149.94,149.81,9.57]
[1642143278956,2.668,149.93,149.81,9.57]
[1642143279357,2.918,149.93,149.81,9.57]
[1642143279556,66.99,149.91,149.81,9.57]
[1642143279757,2.669,149.9,149.81,9.57]
[1642143279959,2.919,149.9,149.81,9.57]
[1642143281358,21.3722434,149.9,149.78,2.668]
[1642143281558,44.2918434,149.9,149.77,0.5]
[1642143281758,69.1565434,149.9,149.77,0.5]
[1642143282159,79.1687434,149.9,149.77,0.5]
[1642143283563,66.99,149.89,149.77,0.5]
[1642143283760,77.0042,149.87,149.77,0.5]
[1642143283963,2.669,149.86,149.77,0.5]
[1642143284361,12.489,149.86,149.77,0.5]
[1642143284661,66.99,149.85,149.77,0.5]
[1642143284860,77.0068,149.83,149.77,0.5]
[1642143285061,77.2568,149.83,149.77,0.5]
[1642143286065,2.67,149.82,149.77,0.5]
[1642143286464,2.92,149.82,149.77,0.5]
[1642143287865,12.9371,149.82,149.77,0.5]
[1642143288265,10.2671,149.82,149.77,0.5]
[1642143288668,11.9403434,149.82,149.77,0.5]
[1642143289266,10.2671,149.82,149.77,0.5]
[1642143291368,66.99,149.81,149.77,0.5]
[1642143291570,67.24,149.81,149.77,0.5]
[1642143292769,69.91,149.81,149.77,0.5]
[1642143293571,79.9278,149.81,149.77,0.5]
[1642143294671,69.91,149.81,149.77,0.5]
[1642143295170,2.92,149.81,149.77,0.5]
[1642143295976,12.9377,149.81,149.77,0.5]
[1642143296175,2.92,149.81,149.77,0.5]
[1642143296376,27.6543,149.81,149.77,0.5]
[1642143296575,1.6732434,149.8,149.68,2.67]
[1642143296776,1.6732434,149.8,149.66,12.73104728]
[1642143296777,2.67,149.79,149.67,2.67]
[1642143296976,26.6202,149.79,149.67,2.67]
[1642143297376,23.9502,149.79,149.67,2.67]
[1642143297776,2.67,149.81,149.67,12.6891]
[1642143297978,3.78680605,149.82,149.68,9.57]
[1642143298176,3.78680605,149.82,149.69,2.67]
[1642143298378,3.78680605,149.82,149.7,9.57]
[1642143298586,3.78680605,149.82,149.71,28.43629281]
[1642143299278,25.5331,149.84,149.71,28.43629281]
[1642143299479,92.5231,149.84,149.71,28.43629281]
[1642143299679,92.5231,149.84,149.72,9.57]
[1642143299881,92.7731,149.84,149.72,9.57]
[1642143300081,25.7831,149.84,149.72,19.5856]
[1642143300580,25.5331,149.84,149.72,19.5856]
[1642143300982,27.48410605,149.85,149.72,19.8456]
[1642143301180,27.48410605,149.85,149.72,30.88573108]
[1642143301380,3.78680605,149.87,149.72,30.62573108]
[1642143301583,3.78680605,149.87,149.78,10.0118]
[1642143302402,2.669,149.86,149.78,10.0118]
[1642143303502,0.25,149.86,149.78,10.0118]
[1642143303903,2.919,149.88,149.78,10.0118]
[1642143304106,2.919,149.88,149.76,10.0129]
[1642143305108,12.9319,149.88,149.76,10.0129]
[1642143305806,83.70870605,149.88,149.76,10.0129]
[1642143307007,83.45870605,149.88,149.76,10.0129]
[1642143307408,83.45870605,149.88,149.77,2.669]
[1642143307609,83.45870605,149.88,149.77,12.6816]
[1642143307807,83.45870605,149.88,149.76,2.669]
[1642143308008,23.8276,149.87,149.75,34.1757]
[1642143308207,2.67,149.86,149.75,34.1757]
[1642143308410,69.66,149.86,149.75,34.1757]
[1642143309009,69.91,149.86,149.75,34.1757]
[1642143309910,79.9242,149.86,149.75,34.1757]
[1642143310712,83.71100605,149.86,149.75,34.1757]
[1642143311512,79.9242,149.86,149.75,34.1757]
[1642143314622,91.1674434,149.86,149.71,2.67]
[1642143314819,66.99,149.84,149.7,2.67]
[1642143315018,10.0171,149.82,149.7,2.67]
[1642143315219,77.0071,149.82,149.7,2.67]
[1642143315418,77.2571,149.82,149.7,2.67]
[1642143316219,77.2571,149.82,149.7,12.687]
[1642143316421,23.9421,149.81,149.7,36.5425]
[1642143316921,24.1921,149.81,149.7,36.5425]
[1642143317125,24.1921,149.81,149.71,9.57]
[1642143317320,24.1921,149.81,149.73,10.0153]
[1642143317521,24.1921,149.81,149.74,2.67]
[1642143318121,23.9421,149.81,149.74,2.67]
[1642143318321,23.9421,149.81,149.72,2.67]
[1642143318521,66.99,149.85,149.72,2.67]
[1642143318721,23.0883,149.84,149.72,26.9685]
[1642143319121,1.91504464,149.83,149.74,10.0148]
[1642143319323,1.91504464,149.83,149.75,2.67]
[1642143319523,2.16504464,149.83,149.74,10.0148]
[1642143320822,1.91504464,149.83,149.74,10.0148]
[1642143321924,1.91504464,149.83,149.75,2.67]
[1642143322126,0.25,149.83,149.75,2.67]
[1642143322327,0.25,149.83,149.75,12.6841]
[1642143322524,25.25334464,149.84,149.75,10.0141]
[1642143324629,1.91504464,149.84,149.75,10.0141]
[1642143324833,1.91504464,149.84,149.75,19.5841]
[1642143326127,1.91504464,149.86,149.76,2.67]
[1642143326327,1.91504464,149.86,149.79,10.0115]
[1642143326527,2.16504464,149.86,149.79,10.0115]
[1642143330833,4.83404464,149.86,149.79,10.0115]
[1642143331934,2.16504464,149.86,149.79,10.0115]
[1642143332835,2.16504464,149.86,149.79,19.5815]
[1642143333235,1.91504464,149.86,149.83,10.0087]
[1642143333636,1.91504464,149.86,149.84,3.0321]
[1642143333937,1.91504464,149.88,149.84,3.0321]
[1642143334536,2.16504464,149.88,149.84,3.0321]
[1642143335136,2.16504464,149.88,149.84,13.0401]
[1642143335537,0.25,149.88,149.84,13.0401]
[1642143335935,2.16504464,149.9,149.84,13.0401]
[1642143336166,2.16504464,149.9,149.84,3.0321]
[1642143337765,2.16504464,149.9,149.82,10.0089]
[1642143337962,1.91504464,149.89,149.82,10.0089]
[1642143338364,2.16504464,149.89,149.82,10.0089]
[1642143340269,2.16504464,149.89,149.81,23.5487]
[1642143340473,1.91504464,149.88,149.81,23.5487]
[1642143340873,2.16504464,149.88,149.81,23.5487]
[1642143341075,2.16504464,149.88,149.81,33.1187]
[1642143341473,0.25,149.88,149.81,43.1288]
[1642143342073,2.16504464,149.89,149.81,43.1288]
[1642143342275,2.16504464,149.89,149.82,2.669]
[1642143342474,2.16504464,149.89,149.84,10.0076]
[1642143342475,0.25,149.89,149.84,10.0076]
[1642143342875,2.16504464,149.91,149.84,10.0076]
[1642143343474,1.91504464,149.9,149.84,10.0076]
[1642143343874,2.16504464,149.9,149.84,10.0076]
[1642143345179,1.91504464,149.89,149.84,10.0076]
[1642143345676,2.16504464,149.89,149.84,10.0076]
[1642143346079,0.25,149.89,149.84,10.0076]
[1642143346580,2.16504464,149.9,149.84,10.0076]
[1642143347480,1.91504464,149.9,149.84,34.91931679]
[1642143348082,1.91504464,149.9,149.84,10.0076]
[1642143349081,2.16504464,149.9,149.84,10.0076]
[1642143349282,0.25,149.9,149.84,10.0076]
[1642143349482,2.16504464,149.91,149.84,10.0076]
[1642143372640,2.16504464,149.91,149.83,23.1695]
[1642143373339,2.16504464,149.91,149.82,11.71396682]
[1642143373539,2.16504464,149.91,149.82,1.70496682]
[1642143373740,2.669,149.9,149.82,1.70496682]
[1642143373939,66.99,149.88,149.82,1.70496682]
[1642143374140,23.4375,149.89,149.81,1.70496682]
[1642143374341,2.919,149.88,149.81,1.70496682]
[1642143375241,1.91504464,149.87,149.79,10.0114]
[1642143375443,2.16504464,149.87,149.79,10.0114]
[1642143376248,0.25,149.87,149.79,11.71636682]
[1642143376641,2.16504464,149.88,149.79,11.71636682]
[1642143379945,25.35254464,149.89,149.79,11.71636682]
[1642143380144,25.35254464,149.89,149.8,11.71576682]
[1642143381347,25.60254464,149.89,149.8,11.71576682]
[1642143382448,25.60254464,149.89,149.8,14.38476682]
[1642143383750,25.60254464,149.89,149.8,12.6798]
[1642143383948,23.6875,149.89,149.8,12.6798]
[1642143385152,23.6875,149.89,149.8,10.0108]
[1642143386751,4.58404464,149.9,149.8,10.0108]
[1642143386951,1.91504464,149.9,149.8,21.19168842]
[1642143387153,1.91504464,149.9,149.8,88.44168842]
[1642143387353,1.91504464,149.9,149.8,94.44168842]
[1642143387554,1.91504464,149.9,149.8,105.4818195]
[1642143387955,1.91504464,149.93,149.81,4.37396682]
[1642143388154,1.91504464,149.93,149.86,10.0065]
[1642143388587,2.16504464,149.93,149.86,10.0065]
[1642143388981,2.16504464,149.93,149.83,2.668]
[1642143389182,0.25,149.93,149.83,2.668]
[1642143389382,0.25,149.93,149.86,0.02]
[1642143389584,2.16504464,149.94,149.86,0.02]
[1642143391187,2.16504464,149.94,149.86,10.0267]
[1642143393184,2.16504464,149.94,149.86,0.02]
[1642143393788,2.668,149.93,149.86,0.02]
[1642143393985,2.918,149.93,149.86,0.02]
[1642143394185,1.91504464,149.92,149.86,0.02]
[1642143394586,25.84114464,149.92,149.86,0.02]
[1642143404401,23.9261,149.92,149.86,0.02]
[1642143405200,25.84114464,149.92,149.86,0.02]
[1642143406002,23.9261,149.92,149.86,0.02]
[1642143409636,25.84114464,149.92,149.86,0.02]
[1642143413740,23.9261,149.92,149.86,0.02]
[1642143415542,1.91504464,149.91,149.86,0.02]
[1642143415944,2.16504464,149.91,149.86,0.02]
[1642143419947,4.83304464,149.91,149.86,0.02]
[1642143420147,91.4981,149.9,149.86,0.02]
[1642143420550,91.7481,149.9,149.86,0.02]
[1642143420746,1.91504464,149.89,149.86,0.02]
[1642143420948,2.12039772,149.88,149.86,0.02]
[1642143421349,2.37039772,149.88,149.86,0.02]
[1642143427085,2.12039772,149.88,149.86,0.02]
[1642143428584,2.37039772,149.88,149.86,0.02]
[1642143429185,12.38299772,149.88,149.86,0.02]
[1642143430386,2.37039772,149.88,149.86,0.02]
[1642143438493,2.12039772,149.88,149.86,0.02]
[1642143439092,2.12039772,149.88,149.87,2.368082]
[1642143439894,2.37039772,149.88,149.87,2.368082]
[1642143440795,0.25,149.88,149.87,2.368082]
[1642143440994,0.25,149.88,149.87,6.31198424]
[1642143441796,0.25,149.88,149.87,2.368082]
[1642143443398,2.37039772,149.88,149.87,2.368082]
[1642143444601,0.25,149.88,149.87,6.31198424]
[1642143445000,0.25,149.88,149.87,2.368082]
[1642143445600,0.25,149.88,149.87,2.388082]
[1642143448202,2.37039772,149.88,149.87,2.388082]
[1642143455410,4.28544236,149.88,149.87,2.388082]
[1642143456007,4.03544236,149.88,149.87,2.388082]
[1642143457510,4.28544236,149.88,149.87,2.388082]
[1642143459712,4.03544236,149.88,149.87,2.388082]
[1642143460915,2.12039772,149.88,149.87,2.388082]
[1642143461113,2.37039772,149.88,149.87,2.388082]
[1642143461415,2.12039772,149.88,149.87,2.388082]
[1642143462512,2.37039772,149.88,149.87,2.388082]
[1642143469823,0.25,149.88,149.87,6.33198424]
[1642143476456,0.25,149.88,149.87,2.388082]
[1642143476661,0.25,149.88,149.87,6.33198424]
[1642143478160,2.37039772,149.88,149.87,2.388082]
[1642143478861,0.25,149.88,149.87,5.420182]
[1642143479261,0.25,149.88,149.87,6.33198424]
[1642143482367,0.25,149.88,149.87,3.29988424]
[1642143483171,0.25,149.88,149.87,6.33198424]
[1642143489083,2.37039772,149.88,149.87,2.388082]
[1642143491577,0.25,149.88,149.87,6.33198424]
[1642143493180,1.91504464,149.92,149.87,6.33198424]
[1642143493981,1.91504464,149.93,149.87,6.33198424]
[1642143494889,2.16504464,149.93,149.87,6.33198424]